[Event "4NCL Div 2 2024-25"]
[Site "England"]
[Date "2025.01.26"]
[Round "4.14"]
[White "Snape, Ian L"]
[Black "Kemp, Peter D"]
[Result "1/2-1/2"]
[Annotator "TA"]
[ECO "A83"]
[WhiteElo "2061"]
[BlackElo "2096"]
[PlyCount "117"]
[EventDate "2024.11.23"]
[EventType "team-tourn"]
[EventCountry "ENG"]
[SourceTitle "playchess.com"]
[Source "ChessBase"]
[SourceQuality "1"]
[TimeControl "40/6000+30:3000+30"]

{[%evp 10,117,10,6,38,32,39,29,43,43,45,13,55,49,66,48,35,50,56,54,101,91,139,101,103,117,127,116,129,129,131,131,124,122,155,147,155,155,155,169,168,168,165,149,188,133,131,136,129,133,137,122,140,122,120,124,119,108,120,120,141,136,148,139,156,157,163,125,158,124,153,155,181,159,166,176,162,116,116,116,119,58,83,84,87,85,147,17,179,44,54,62,68,14,79,8,8,8,8,8,8,8,8,8,8,8,37,37,37,37]} 1. d4 {[%emt 0:10:06][%cal Bd2d4,Bd4d5][%mdl 32]} f5 {[%emt 0:10:26]} 2. e4 {[%emt 0:00:06]} fxe4 {[%emt 0:00:05]} 3. Nc3 {[%emt 0:00:04]} Nf6 {[%emt 0:00:10]} 4. Bg5 {[%emt 0:00:05]} Nc6 {[%emt 0:00:56][%cal Bb8c6,Bc6e5,Be5f7][%mdl 32]} 5. d5 {[%emt 0:00:05]} Ne5 {[%emt 0:00:13]} 6. Qe2 {[%emt 0:00:06]} Nf7 {[%emt 0:01:21] A83: Dutch Defence: Staunton Gambit with 3 Nc3 Nf6 4 Bg5.} 7. Bxf6 {[%emt 0:00:07]} (7. Nxe4 $2 Nxe4 (7... Nxd5 8. Nf3 $11) 8. Bh4 Nf6 9. Bxf6 gxf6 $19) 7... exf6 {[%emt 0:01:16]} 8. Nxe4 {[%emt 0:00:05][%cal Re4d6]} Be7 {[%emt 0:00:53] [#] White has an edge.} 9. d6 $1 {[%emt 0:00:30]} cxd6 {[%emt 0:02:39]} 10. Nc3 {[%emt 0:02:31]} O-O {[%emt 0:03:10]} 11. O-O-O {[%emt 0:00:36]} d5 {[%emt 0:05:09][%cal Od5d4]} 12. Nxd5 {[%emt 0:07:14]} Bc5 {[%emt 0:04:10]} 13. Qh5 $146 {[%emt 0:01:38]} (13. f4 d6 14. Nf3 Re8 15. Qd2 Bd7 16. Bc4 b5 17. Bb3 a5 18. c3 b4 19. cxb4 axb4 {0-1 Panelo Munoz,M (2360)-Sturt,R (2437) Badalona op 44th 2018 (8)}) 13... d6 {[%emt 0:04:52]} 14. Bd3 $40 {[%emt 0:09:21][%csl Gd3][%cal Rh5h7,Bf1d3,Bd3c4,Bc4d5][%mdl 160] White mounts an attack.} f5 {[%emt 0:09:20] A sharp opening} (14... Nh6 $14) 15. f4 $16 {[%emt 0:07:18] White has more active pieces.} g6 {[%emt 0:04:49]} (15... Nh6 $142) 16. Qh3 {[%emt 0:04:50]} Be6 {[%emt 0:01:49]} 17. Bc4 {[%emt 0:01:12]} Bxd5 {[%emt 0:00:42]} 18. Bxd5 {[%emt 0:00:43]} (18. Rxd5 $6 Qe7 19. Qf3 b5 $11) 18... Qf6 {[%emt 0:05:12]} 19. Kb1 {[%emt 0:05:30]} (19. Bxb7 $2 Rab8 20. Qf3 d5 $19) 19... Rfe8 {[%emt 0:08:26]} 20. Qb3 {[%emt 0:06:38]} (20. Bxb7 $2 Rab8 21. Qf3 Re4 $19 (21... Re7 $2 22. Ne2 $19)) 20... Re7 {[%emt 0:06:21]} 21. Nf3 {[%emt 0:01:33][%cal Oh1e1]} (21. Bxb7 $2 Rb8 22. Qd3 Rbxb7 $19 (22... Rexb7 $2 23. b3 $19)) 21... Kf8 {[%emt 0:04:32]} 22. Rhe1 {[%emt 0:07:20]} (22. Bxb7 $2 Rb8 23. Qd3 (23. Ng5 $2 Kg7 $19) 23... Rbxb7 $19 (23... Rexb7 $2 24. b3 $19)) 22... Rae8 {[%emt 0:04:11]} 23. Rxe7 {[%emt 0:03:23]} (23. Bxb7 $2 Rb8 24. Qc4 (24. Rxe7 $2 Qxe7 25. Qc3 Qxb7 $19) 24... Rbxb7 $19) 23... Rxe7 {[%emt 0:03:26]} 24. Bxb7 {[%emt 0:01:10]} Nd8 {[%emt 0:02:33]} 25. Bd5 {[%emt 0:00:54]} Ne6 {[%emt 0:02:22]} 26. g3 {[%emt 0:01:42]} Nd4 {[%emt 0:02:55]} 27. Nxd4 {[%emt 0:06:31]} (27. Qc3 $18 Qg7 28. b4 (28. Nxd4 Bxd4 29. Qc8+ Re8 $16)) 27... Qxd4 {[%emt 0:01:49][%cal Rd4d1]} 28. c3 {[%emt 0:01:21]} Qe3 {[%emt 0:03:19]} 29. Qb8+ {[%emt 0:01:13]} Re8 {[%emt 0:01:01] Black is weak on the light squares} 30. Qc7 {[%emt 0:00:24]} Qe7 {[%emt 0:00:26]} 31. Qxe7+ {[%emt 0:00:45]} Rxe7 {[%emt 0:00:07][%mdl 4096] Endgame KRB-KRB. White is a pawn up.} 32. b4 {[%emt 0:02:04]} Bb6 {[%emt 0:00:49]} 33. Rd2 {[%emt 0:04:25] Wards off Re2} h5 {[%emt 0:05:42][%cal Bh7h5,Bh5h4][%mdl 32]} 34. Kc2 {[%emt 0:05:59]} h4 {[%emt 0:03:57]} 35. a4 {[%emt 0:04:14]} Be3 {[%emt 0:03:59]} 36. Rd1 {[%emt 0:05:51]} Bf2 {[%emt 0:02:15]} 37. gxh4 {[%emt 0:01:18]} Bxh4 {[%emt 0:00:10]} 38. Rd2 {[%emt 0:01:35]} Re3 {[%emt 0:01:54]} 39. Kb3 {[%emt 0:01:52]} Bf6 {[%emt 0:01:07]} 40. Rc2 {[%emt 0:00:34]} Ke7 {[%emt 0:00:51]} 41. a5 {[%emt 0:50:44]} Kd7 {[%emt 0:23:30]} 42. b5 {[%emt 0:00:00] aiming for b6.} Kc7 {[%emt 0:03:55]} 43. Kb4 {[%emt 0:00:00]} (43. Kc4 $18) 43... Rd3 {[%emt 0:01:50] [#]} 44. Kc4 {[%emt 0:00:00]} Re3 {[%emt 0:01:12]} 45. Bf7 {[%emt 0:00:00]} (45. Bg2 $16) 45... g5 {[%emt 0:04:36]} 46. fxg5 {[%emt 0:00:00]} Bxg5 {[%emt 0:00:14]} 47. Rf2 {[%emt 0:00:00]} f4 {[%emt 0:02:09] [#]} (47... Re4+ $142 48. Kb3 Re5) 48. h4 {[%emt 0:00:00]} Bh6 $2 {[%emt 0:02:02]} (48... Re4+ $11 {and Black is okay.} 49. Kd3 Bxh4 50. b6+ (50. Kxe4 Bxf2 51. Bd5 Bh4 $11) 50... axb6 51. axb6+ Kb8) 49. Rg2 {[%emt 0:00:00]} (49. Bd5 $18) 49... f3 $14 {[%emt 0:02:59]} 50. Rf2 {[%emt 0:00:00]} Bg7 {[%emt 0:00:46]} 51. Bd5 {[%emt 0:00:00]} ({White should try} 51. h5 $1 $14) 51... Bxc3 {[%emt 0:01:57]} (51... Rxc3+ $11 52. Kb4 Rd3) 52. Rxf3 {[%emt 0:00:00]} (52. Rc2 $16 Bg7 53. b6+ Kb8 54. Kb5 axb6 55. axb6) 52... Rxf3 $11 {[%emt 0:00:09]} 53. Bxf3 {[%emt 0:00:00]} Bxa5 {[%emt 0:01:02] KB-KB} 54. h5 {[%emt 0:00:00] White threatens h6 and mate.} Bd2 {[%emt 0:00:07]} 55. Kd5 {[%emt 0:00:00]} Kd7 {[%emt 0:01:06]} 56. Bg4+ {[%emt 0:00:00]} Ke7 {[%emt 0:00:30]} 57. Kc6 {[%emt 0:00:00]} Kf6 {[%emt 0:00:44]} 58. Kxd6 {[%emt 0:00:00]} Bf4+ {[%emt 0:00:30]} 59. Kd5 {[%emt 0:16:23] Black defended with fortune.   Weighted Error Value: White=0.18 (very precise) /Black=0.18 (very precise)   Loses game:     	---       	Black=1      Mistake:       	White=7     	Black=4      Inaccurate:     	White=1     	Black=2      OK:         	White=29    	Black=21     Best:        	White=1     	Black=2      Brilliant:      	White=1     	---} 1/2-1/2

[Event "4NCL Div 2 2024-25"]
[Site "England"]
[Date "2025.01.26"]
[Round "4.15"]
[White "Franco, Gaston"]
[Black "Nguyen, Thu Giang"]
[Result "1/2-1/2"]
[Annotator "TA"]
[ECO "B13"]
[WhiteElo "2070"]
[BlackElo "2049"]
[PlyCount "60"]
[EventDate "2024.11.23"]
[EventType "team-tourn"]
[EventCountry "ENG"]
[SourceTitle "playchess.com"]
[Source "ChessBase"]
[SourceQuality "1"]
[TimeControl "40/6000+30:3000+30"]

{[%evp 12,60,-10,-8,-9,-5,-4,-15,-12,-13,0,0,0,0,0,0,0,0,9,6,5,4,18,16,26,20,26,0,64,58,80,108,108,109,127,0,0,0,0,0,0,0,0,0,0,0,0,0,0,0,0]} 1. e4 {[%emt 0:10:03]} c6 {[%emt 0:10:25]} 2. d4 {[%emt 0:00:11]} d5 {[%emt 0:00:14]} 3. exd5 {[%emt 0:00:58]} cxd5 {[%emt 0:00:05]} 4. Bd3 {[%emt 0:00:20]} Nc6 {[%emt 0:00:14]} 5. c3 {[%emt 0:00:08]} Qc7 {[%emt 0:00:10]} 6. Nf3 {[%emt 0:03:02]} Bg4 {[%emt 0:03:44]} 7. O-O {[%emt 0:00:44]} e6 {[%emt 0:03:02] B13: Caro-Kann: Exchange Variation and Panov-Botvinnik Attack.} 8. Nbd2 {[%emt 0:03:43]} Bd6 {[%emt 0:02:44][%cal Od6h2] ...Bxh2+! is in the air} 9. h3 {[%emt 0:01:13]} Bh5 {[%emt 0:00:41]} 10. Re1 {[%emt 0:01:44]} Nf6 {[%emt 0:01:02]} 11. Nf1 {[%emt 0:03:29]} O-O $1 {[%emt 0:02:55] The main line 11...0-0 scores better than 11...Bg6.} 12. Bg5 {[%emt 0:03:08]} Rac8 {[%emt 0:06:40]} 13. Bh4 {[%emt 0:19:52]} Rfe8 {[%emt 0:03:19]} 14. Bg3 {[%emt 0:15:03]} e5 $146 {[%emt 0:01:10]} (14... a6 15. Bxd6 Qxd6 16. Ng3 Bg6 17. Ne5 Qc7 18. f4 Bxd3 19. Qxd3 b5 20. a3 Rb8 {0-1 Jarocka,L (2200)-Guzman,C (2239) Titled Tuesday intern op 19th Mar Early blitz 2024 (9)}) 15. dxe5 {[%emt 0:01:37]} Nxe5 {[%emt 0:00:46]} 16. Bxe5 {[%emt 0:07:54]} Bxe5 {[%emt 0:00:28]} (16... Rxe5 $5 17. Rxe5 Bxf3 18. Qxf3 Bxe5 $11) 17. g4 {[%emt 0:02:29][%cal Bg2g4,Bg4g5][%mdl 32]} Bg6 {[%emt 0:04:16]} 18. Bb5 {[%emt 0:01:52]} Re7 {[%emt 0:01:53]} 19. Ne3 {[%emt 0:01:57][%cal Og4g5] [#]} Be4 {[%emt 0:06:23]} ({Black should play} 19... Bg3 $11) 20. g5 $14 {[%emt 0:06:01]} Nh5 {[%emt 0:28:53]} 21. Nxe5 {[%emt 0:18:21]} (21. Nxd5 $6 Bxd5 22. Qxd5 Nf4 $11) 21... Rxe5 {[%emt 0:00:37]} 22. Qxh5 {[%emt 0:01:22] White attacks} f6 {[%emt 0:00:17] [#]} 23. f4 {[%emt 0:03:00]} ({White has to play} 23. h4 $1 $16) 23... Rxg5+ $1 $11 {[%emt 0:00:18] The position is equal.} 24. fxg5 {[%emt 0:00:04]} Qg3+ {[%emt 0:00:04]} 25. Kf1 {[%emt 0:00:05]} Bf3 {[%emt 0:00:19] Dodges Qg4} 26. Bd7 {[%emt 0:03:07]} Bxh5 {[%emt 0:03:07]} 27. Bxc8 {[%emt 0:00:06]} Qf4+ {[%emt 0:07:16]} (27... Qxg5 $6 28. Bg4 $16 (28. Bxb7 Qf4+ 29. Kg1 Qg3+ 30. Kf1 Qxh3+ 31. Kg1 Qg3+ 32. Kf1 Bf3 $17)) 28. Kg1 {[%emt 0:00:33]} Qg3+ {[%emt 0:04:08]} 29. Kf1 $1 {[%emt 0:00:15]} ({Don't blunder} 29. Ng2 $2 Bf3 30. Be6+ Kf8 $19) 29... Qf3+ {[%emt 0:00:22]} ({Of course not} 29... Qxg5 $6 30. Be6+ (30. Bxb7 Qf4+ 31. Kg1 Qg3+ 32. Kf1 Qxh3+ 33. Kf2 Qf3+ 34. Kg1 Qg3+ 35. Kf1 Qf4+ 36. Kg1 Bf3 $17) 30... Kh8 31. Bg4 $16) 30. Kg1 {[%emt 0:00:05] aiming for Nf5.} Qg3+ $1 {[%emt 0:00:04] Weighted Error Value: White=0.10 (very precise) /Black=0.08 (flawless)   Mistake:       	White=1     	Black=1      Inaccurate:     	White=1     	---        OK:         	White=12    	Black=8      Best:        	White=2     	Black=1      Strong:       	White=1     	Black=2} 1/2-1/2

[Event "4NCL Div 2 2024-25"]
[Site "England"]
[Date "2025.01.26"]
[Round "4.16"]
[White "Baltrunas, Evaldas"]
[Black "Serbanescu, Diana-Maria"]
[Result "1/2-1/2"]
[Annotator "TA"]
[ECO "E97"]
[WhiteElo "1995"]
[BlackElo "1992"]
[PlyCount "140"]
[EventDate "2024.11.23"]
[EventType "team-tourn"]
[EventCountry "ENG"]
[SourceTitle "playchess.com"]
[Source "ChessBase"]
[SourceQuality "1"]
[TimeControl "40/6000+30:3000+30"]

{[%evp 16,140,64,29,61,67,73,58,70,31,33,24,19,14,51,37,50,40,61,62,90,37,64,65,87,69,87,68,71,52,84,59,41,42,118,99,160,128,269,179,209,170,241,169,225,154,312,308,384,370,427,408,437,325,340,318,365,359,353,313,326,312,356,345,320,243,250,147,122,160,258,154,151,0,0,0,0,0,47,47,47,47,47,47,47,33,47,33,47,47,47,47,47,47,47,47,47,47,48,47,47,12,47,47,79,79,79,79,79,62,62,62,62,62,62,32,62,62,62,62,62,62,62,62,62,17,17]} 1. d4 {[%emt 0:10:05]} d6 {[%emt 0:10:07]} 2. Nf3 {[%emt 0:00:26]} Nf6 {[%emt 0:01:43]} 3. c4 {[%emt 0:00:42]} g6 {[%emt 0:00:06]} 4. Nc3 {[%emt 0:00:05]} Bg7 {[%emt 0:00:05]} 5. e4 {[%emt 0:00:14]} O-O {[%emt 0:02:29]} 6. Be2 {[%emt 0:00:21]} e5 {[%emt 0:05:28]} 7. O-O {[%emt 0:00:18]} Nc6 {[%emt 0:00:27][%cal Bb8c6,Bc6e7,Be7f5,Bf5d4][%mdl 32]} 8. d5 {[%emt 0:00:38]} Ne7 {[%emt 0:00:51]} 9. a4 {[%emt 0:00:17]} Nd7 {[%emt 0:05:40] E97: King's Indian: Classical Main Line (6...e5 7 0-0 Nc6): 8 Be3 and 8 d5 Ne7, not 9 Ne1.} 10. a5 {[%emt 0:01:38]} f5 {[%emt 0:01:56]} 11. Ng5 {[%emt 0:02:22]} Nf6 {[%emt 0:14:47] White is slightly better.} 12. exf5 {[%emt 0:12:54]} Nxf5 {[%emt 0:03:49]} 13. Ra3 {[%emt 0:09:10]} Nd4 $146 {[%emt 0:06:28]} (13... Qe7 14. Re1 h6 15. Nge4 Nd4 16. Bd3 Nh5 17. Ne2 Bg4 18. Be3 Bxe2 19. Bxe2 Nxe2+ 20. Rxe2 {1-0 Hobuss,U (2385)-Degiacomi,F (2007) Nagler Memorial op 1998 (6)}) 14. Bd3 {[%emt 0:02:19]} Bg4 {[%emt 0:04:04]} 15. f3 {[%emt 0:04:07]} Bd7 {[%emt 0:04:11]} 16. Ne2 {[%emt 0:10:49]} Nxe2+ {[%emt 0:10:26]} 17. Qxe2 {[%emt 0:02:27]} Qe8 {[%emt 0:08:40]} 18. Qc2 {[%emt 0:08:50] White has more active pieces.} (18. Be3 $16) 18... Nh5 {[%emt 0:02:32]} 19. g3 {[%emt 0:05:22]} Bf6 {[%emt 0:08:53]} 20. Ne4 {[%emt 0:03:33]} Be7 {[%emt 0:00:07]} 21. b4 {[%emt 0:01:20]} c6 {[%emt 0:07:17] Counterplay White} 22. a6 {[%emt 0:11:45] White plays on the queen side and is better} cxd5 {[%emt 0:01:49] White has space advantage and is better} 23. cxd5 {[%emt 0:02:26]} (23. axb7 {seems wilder.} Rb8 24. Nc3 d4 25. Nd5) 23... Rc8 {[%emt 0:02:22]} 24. Qe2 {[%emt 0:04:29]} bxa6 {[%emt 0:02:34]} (24... b6 $14) 25. Rxa6 {[%emt 0:00:41][%cal Oc1h6]} Bh3 {[%emt 0:01:04]} (25... Nf6 $142) 26. Rd1 {[%emt 0:02:03][%cal Oc1h6]} (26. Nxd6 Bxf1 27. Qxf1 Bxd6 28. Rxd6 Qe7 $17) 26... Rb8 {[%emt 0:04:00]} (26... Nf6 $16 27. Rxa7 (27. Nxd6 Bxd6 28. Rxd6 Qa4 $18) 27... Nxe4 28. Bxe4 Rb8) 27. Bd2 {[%emt 0:01:55]} Qd7 {[%emt 0:00:05]} 28. Rda1 {[%emt 0:01:03]} Rb7 {[%emt 0:00:17]} (28... Nf6 $142 29. Rxa7 Rb7) 29. R1a5 {[%emt 0:02:27]} Ng7 {[%emt 0:00:51]} (29... Nf6 $142) 30. Nf2 {[%emt 0:01:21]} Bf5 {[%emt 0:00:07]} (30... Nf5 $16) 31. Bb5 $1 $18 {[%emt 0:00:21]} Qc8 {[%emt 0:01:35]} 32. Bc6 {[%emt 0:00:15]} (32. Rxa7 Rxa7 33. Rxa7 Bd8 $18) 32... Rb6 {[%emt 0:00:37]} 33. Rxa7 {[%emt 0:00:23]} Bd8 {[%emt 0:00:02]} 34. Ra8 {[%emt 0:02:21]} Rb8 {[%emt 0:00:38]} 35. Rxb8 {[%emt 0:01:13]} Qxb8 {[%emt 0:00:01]} 36. Ra8 {[%emt 0:01:13]} Qb6 {[%emt 0:00:01]} 37. b5 {[%emt 0:00:47]} Qc5 {[%emt 0:00:03]} 38. Be3 {[%emt 0:00:59]} Qb4 {[%emt 0:00:02]} 39. Kg2 {[%emt 0:01:14]} Bb1 {[%emt 0:00:36]} 40. Bd2 {[%emt 0:02:49]} Qb2 {[%emt 0:01:31]} 41. Nd1 {[%emt 0:23:37]} ({White should try} 41. g4 $18) 41... Qb3 $16 {[%emt 0:23:18]} 42. Nc3 $1 {[%emt 0:02:23]} Nf5 {[%emt 0:00:14] [#]} (42... Bc2 $16 43. g4 h5) 43. Nxb1 {[%emt 0:04:49]} (43. Bd7 $1 $18 {[%cal Rd7f5]}) 43... Qxb1 {[%emt 0:02:10] [#]} 44. Be3 {[%emt 0:03:50]} (44. Bd7 $1 $16 {[%cal Rd7e6]}) 44... Nxe3+ {[%emt 0:02:23]} 45. Qxe3 {[%emt 0:00:06]} Qc2+ {[%emt 0:00:16]} 46. Qf2 {[%emt 0:03:42]} Qxf2+ {[%emt 0:00:06]} (46... Qd1 $11 {feels stronger.}) 47. Kxf2 $11 {[%emt 0:00:00][%mdl 4096] Endgame and Ra6 would now be decisive. KRB-KRB. White is a pawn up.} Bb6+ {[%emt 0:00:09]} 48. Ke2 {[%emt 0:00:04]} Rxa8 {[%emt 0:00:05]} 49. Bxa8 $14 {[%emt 0:00:01] KB-KB. White is a pawn up.} Kf7 {[%emt 0:00:31]} 50. Kd3 {[%emt 0:00:07]} Kf6 {[%emt 0:00:38]} 51. Ke4 {[%emt 0:00:20]} g5 {[%emt 0:00:40]} 52. Bc6 {[%emt 0:03:44]} Bc5 {[%emt 0:00:32]} 53. Bd7 {[%emt 0:01:08]} Bb6 {[%emt 0:00:17]} 54. Kd3 {[%emt 0:00:45]} h6 {[%emt 0:01:02]} 55. Be8 {[%emt 0:01:39]} Bc5 {[%emt 0:00:36]} 56. Ke2 {[%emt 0:00:24]} Bb6 {[%emt 0:00:21]} 57. Kf1 {[%emt 0:00:07]} Kf5 {[%emt 0:01:36]} 58. Kg2 {[%emt 0:02:26]} Kf6 {[%emt 0:01:49]} 59. Kh3 {[%emt 0:00:10]} Bc5 {[%emt 0:00:26]} 60. Kg4 {[%emt 0:00:04]} Bb6 {[%emt 0:00:12]} 61. Kh5 {[%emt 0:00:54]} Kg7 {[%emt 0:00:06]} 62. h4 {[%emt 0:00:18]} gxh4 {[%emt 0:00:16]} 63. Kxh4 {[%emt 0:00:08]} Kf6 {[%emt 0:02:00]} 64. Kh5 {[%emt 0:01:33]} Kg7 {[%emt 0:00:26]} 65. Bg6 {[%emt 0:00:58]} Be3 {[%emt 0:00:40]} 66. Bc2 {[%emt 0:00:19]} Bb6 {[%emt 0:00:15]} 67. f4 {[%emt 0:00:47]} exf4 {[%emt 0:00:22]} 68. gxf4 {[%emt 0:00:02]} Bc5 {[%emt 0:00:21]} 69. Kg4 {[%emt 0:00:31]} Kf6 {[%emt 0:24:52]} 70. f5 Bb6 {[%emt 0:00:00] Black escapes into a draw.   Weighted Error Value: White=0.31/Black=0.28 (precise)   Mistake:       	White=4     	Black=8      Inaccurate:     	White=6     	Black=7      OK:         	White=13    	Black=19     Best:        	---       	Black=1      Strong:       	White=2     	---} 1/2-1/2

[Event "4NCL Div 2 2024-25"]
[Site "England"]
[Date "2025.01.26"]
[Round "4.17"]
[White "Bowcott-Terry, Finlay"]
[Black "Gayson, Peter M"]
[Result "1-0"]
[Annotator "TA"]
[ECO "A80"]
[WhiteElo "2168"]
[BlackElo "2087"]
[PlyCount "63"]
[EventDate "2024.11.23"]
[EventType "team-tourn"]
[EventCountry "ENG"]
[SourceTitle "playchess.com"]
[Source "ChessBase"]
[SourceQuality "1"]
[TimeControl "40/6000+30:3000+30"]

{[%evp 9,63,45,54,54,52,-12,46,31,50,45,108,119,123,31,23,20,34,0,0,-80,-79,-146,-141,-209,-71,-78,0,0,0,0,0,0,0,0,0,0,0,0,201,218,223,204,245,246,208,230,322,314,459,453,1111,1106,5277,1912,1524,1486]} 1. d4 {[%emt 0:10:03]} f5 {[%emt 0:10:57]} 2. Bg5 {[%emt 0:00:05]} g6 {[%emt 0:00:24]} 3. g4 {[%emt 0:00:05]} fxg4 {[%emt 0:05:49]} 4. h3 {[%emt 0:00:31]} g3 $146 {[%emt 0:01:50]} (4... Bg7 5. c3 d5 6. Qd3 Nc6 7. hxg4 Bxg4 8. f3 Bf5 9. e4 Qd6 10. Ne2 dxe4 11. fxe4 {1-0 Madsen,H (2107)-Rasmussen,P (2022) Lovfalds 07th A 1993 (3)}) 5. fxg3 {[%emt 0:00:02]} Nf6 {[%emt 0:00:51]} 6. Bg2 {[%emt 0:00:16] A80: Dutch Defence: Unusual White second moves.} d5 {[%emt 0:01:53]} 7. c4 {[%emt 0:00:02]} ({White should try} 7. Nc3 $14) 7... c6 {[%emt 0:06:21]} (7... Ne4 $11 8. Bf4 c6) 8. cxd5 {[%emt 0:02:43] White is slightly better.} cxd5 {[%emt 0:11:30]} 9. Nc3 {[%emt 0:01:57] Prevents Ne4} e6 {[%emt 0:05:14]} (9... Nc6 $14) 10. e4 $16 {[%emt 0:04:22] White is more active.} dxe4 {[%emt 0:04:11]} 11. Qa4+ {[%emt 0:00:35]} (11. Bxe4 Bg7 $14) (11. Nge2 $16) 11... Bd7 $14 {[%emt 0:15:24]} 12. Qb3 {[%emt 0:00:06]} Be7 {[%emt 0:42:06]} 13. Bxf6 {[%emt 0:12:09]} (13. Qxb7 Nc6 14. Bf4 O-O $17 (14... Nxd4 15. O-O-O $14)) (13. Nxe4 Nxe4 14. Bxe7 Qxe7 $11) 13... Bxf6 {[%emt 0:00:00]} 14. Bxe4 {[%emt 0:01:31]} (14. Nge2 $11) 14... Nc6 $1 $17 {[%emt 0:00:00]} (14... Bxd4 15. Nge2 (15. Qxb7 O-O $14) (15. Bxb7 Nc6 $11) 15... Nc6 16. Nxd4 Nxd4 17. Qxb7 $11) 15. O-O-O {[%emt 0:01:36]} (15. Nf3 $142) 15... Nxd4 {[%emt 0:00:00]} (15... Bxd4 $6 16. Nf3 Na5 17. Qb4 Bxc3 18. bxc3 $15 (18. Qxc3 $2 Rc8 $19)) 16. Qxb7 {[%emt 0:03:01]} (16. Qb4 $17 a5 17. Qxb7) 16... Rb8 {[%emt 0:00:00]} (16... Rc8 $19 {is more deadly.} 17. Kb1 (17. Qxa7 $2 Nb5 $19) 17... Qa5) 17. Qxa7 {[%emt 0:00:02]} Nb5 {[%emt 0:00:00]} (17... e5 $17 {aiming for ...0-0.} 18. Nf3 O-O) 18. Nxb5 $11 {[%emt 0:02:50]} Rxb5 {[%emt 0:00:00]} 19. Bc6 {[%emt 0:12:18] Really sharp!} Bxc6 {[%emt 0:00:00]} (19... Rxb2 $2 {loses.} 20. Rxd7 (20. Bxd7+ Kf8 $18) 20... O-O 21. Rxd8 $18) (19... Bxb2+ $6 20. Kc2 Bxc6 21. Rxd8+ Kxd8 22. Rh2 $16 (22. Nf3 Bxf3 23. Re1 Rb7 $17)) 20. Rxd8+ {[%emt 0:01:12]} Bxd8 {[%emt 0:00:00] This pair of bishops is nice.} 21. Rh2 $1 {[%emt 0:08:34] [#]} O-O {[%emt 0:00:00]} 22. Rf2 {[%emt 0:01:59]} Bg5+ {[%emt 0:00:00]} 23. Kd1 {[%emt 0:05:36] aiming for Rxf8+.} Rxf2 {[%emt 0:02:31]} (23... Rd8+ $11 24. Ke1 Rbd5) 24. Qxf2 $18 {[%emt 0:00:03]} Rd5+ {[%emt 0:00:08]} 25. Kc2 {[%emt 0:00:43]} Rf5 {[%emt 0:01:17]} 26. Qb6 {[%emt 0:04:03]} Be4+ {[%emt 0:00:34]} 27. Kd1 {[%emt 0:00:39]} Rd5+ {[%emt 0:01:41]} 28. Ke1 {[%emt 0:00:01]} Bd2+ {[%emt 0:00:33]} (28... Kg7 {was called for.} 29. h4 (29. Qxe6 Bf6 $18) 29... Bf6) 29. Ke2 {[%emt 0:00:01] White is clearly winning.} Ba5 {[%emt 0:00:17]} (29... Kf7 $142 30. Nf3 Bh6 31. Qc7+ Kg8 32. Qb8+ Bf8) 30. Qxe6+ {[%emt 0:00:03]} Kg7 {[%emt 0:00:33]} 31. Qxe4 {[%emt 0:00:02]} (31. Qe7+ $142 Kg8 32. Qxe4 Rd2+ 33. Ke3) 31... Rd2+ {[%emt 0:00:19]} 32. Ke3 {[%emt 0:00:21] Never resign too early!   Weighted Error Value: White=0.49/Black=0.86  Loses game:     	---       	Black=1      Mistake:       	White=5     	Black=6      Inaccurate:     	White=1     	Black=2      OK:         	White=6     	Black=5      Best:        	White=6     	Black=2      Strong:       	White=1     	Black=1} 1-0